fUSD/lending_fUSD_20240425
["ID","MTS","AMOUNT","RATE_DAILY","PERIOD"]
[323510612,1714060243670,-500.0,0.00010995,2]
[323510613,1714060243680,-586.55,0.00010995,2]
[323510614,1714060243689,-500.0,0.00010995,2]
[323510615,1714060243699,-500.0,0.00010995,2]
[323510616,1714060243708,-500.0,0.00010995,2]
[323510617,1714060243717,-646.56,0.00010995,2]
[323510618,1714060243726,-500.0,0.00010995,2]
[323510619,1714060243735,-500.0,0.00010995,2]
[323510620,1714060243745,-500.0,0.00010995,2]
[323510621,1714060243754,-500.0,0.00010995,2]
[323510623,1714060243764,-500.0,0.00010995,2]
[323510624,1714060243773,-500.0,0.00010995,2]
[323510625,1714060243782,-500.0,0.00010995,2]
[323510626,1714060243792,-500.0,0.00010995,2]
[323510627,1714060243801,-589.31,0.00010995,2]
[323510628,1714060243811,-500.0,0.00010995,2]
[323510630,1714060243820,-500.0,0.00010995,2]
[323510631,1714060243829,-500.0,0.00010995,2]
[323510632,1714060243838,-500.0,0.00010995,2]
[323510633,1714060243847,-500.0,0.00010995,2]
[323510634,1714060243856,-500.0,0.00010995,2]
[323510635,1714060243865,-500.0,0.00010995,2]
[323510636,1714060243874,-500.0,0.00010995,2]
[323510638,1714060243883,-500.0,0.00010995,2]
[323510640,1714060243892,-500.0,0.00010995,2]
[323510641,1714060243901,-500.0,0.00010995,2]
[323510642,1714060243910,-599.98617459,0.00010995,2]
[323510643,1714060243919,-500.0,0.00010995,2]
[323510644,1714060243928,-500.0,0.00010995,2]
[323510646,1714060243938,-500.0,0.00010995,2]
[323510648,1714060243947,-500.0,0.00010995,2]
[323510650,1714060243957,-500.0,0.00010995,2]
[323510652,1714060243967,-500.0,0.00010995,2]
[323510653,1714060243976,-500.0,0.00010995,2]
[323510654,1714060243988,-500.0,0.00010995,2]
[323510655,1714060243998,-500.0,0.00010995,2]
[323510656,1714060244007,-500.0,0.00010995,2]
[323510657,1714060244017,-500.0,0.00010995,2]
[323510658,1714060244027,-500.0,0.00010995,2]
[323510659,1714060244037,-500.0,0.00010995,2]
[323510660,1714060244046,-500.0,0.00010995,2]
[323510661,1714060244055,-500.0,0.00010995,2]
[323510662,1714060244064,-500.0,0.00010995,2]
[323510663,1714060244073,-500.0,0.00010995,2]
[323510664,1714060244083,-500.0,0.00010995,2]
[323510665,1714060244092,-500.0,0.00010995,2]
[323510666,1714060244101,-500.0,0.00010995,2]
[323510667,1714060244111,-500.0,0.00010995,2]
[323510668,1714060244123,-500.0,0.00010995,2]
[323510669,1714060244135,-500.0,0.00010995,2]
[323510670,1714060244145,-500.0,0.00010995,2]
[323510671,1714060244154,-500.0,0.00010995,2]
[323510672,1714060244165,-505.182449,0.00010995,2]
[323510673,1714060244176,-500.0,0.00010995,2]
[323510674,1714060244187,-500.0,0.00010995,2]
[323510675,1714060244196,-500.0,0.00010995,2]
[323510676,1714060244206,-500.0,0.00010995,2]
[323510677,1714060244215,-500.0,0.00010995,2]
[323510678,1714060244225,-500.0,0.00010995,2]
[323510679,1714060244237,-500.0,0.00010995,2]
[323510680,1714060244247,-500.0,0.00010995,2]
[323510681,1714060244256,-500.0,0.00010995,2]
[323510682,1714060244265,-500.0,0.00010995,2]
[323510683,1714060244275,-500.0,0.00010995,2]
[323510684,1714060244285,-500.0,0.00010995,2]
[323510685,1714060244294,-500.0,0.00010995,2]
[323510686,1714060244303,-500.0,0.00010995,2]
[323510687,1714060244313,-500.0,0.00010995,2]
[323510688,1714060244322,-500.0,0.00010995,2]
[323510689,1714060244331,-500.0,0.00010995,2]
[323510690,1714060244341,-500.0,0.00010995,2]
[323510691,1714060244350,-500.0,0.00010995,2]
[323510692,1714060244359,-500.0,0.00010995,2]
[323510693,1714060244368,-500.0,0.00010995,2]
[323510694,1714060244378,-500.0,0.00010995,2]
[323510695,1714060244387,-500.0,0.00010995,2]
[323510696,1714060244396,-500.0,0.00010995,2]
[323510697,1714060244406,-502.36542532,0.00010995,2]
[323510698,1714060244415,-500.0,0.00010995,2]
[323510699,1714060244424,-566.50890074,0.00010995,2]
[323510700,1714060244433,-500.0,0.00010995,2]
[323510701,1714060244443,-500.0,0.00010995,2]
[323510702,1714060244453,-500.0,0.00010995,2]
[323510703,1714060244463,-636.42,0.00010995,2]
[323510704,1714060244472,-500.0,0.00010995,2]
[323510705,1714060244482,-500.0,0.00010995,2]
[323510706,1714060244491,-500.0,0.00010995,2]
[323510707,1714060244501,-500.0,0.00010995,2]
[323510708,1714060244510,-500.0,0.00010995,2]
[323510709,1714060244520,-500.0,0.00010995,2]
[323510710,1714060244529,-500.0,0.00010995,2]
[323510711,1714060244539,-500.0,0.00010995,2]
[323510712,1714060244548,-500.0,0.00010995,2]
[323510713,1714060244557,-500.0,0.00010995,2]
[323510714,1714060244566,-500.0,0.00010995,2]
[323510715,1714060244576,-500.0,0.00010995,2]
[323510716,1714060244585,-500.0,0.00010995,2]
[323510717,1714060244595,-500.0,0.00010995,2]
[323510718,1714060244604,-500.0,0.00010995,2]
[323510719,1714060244614,-500.0,0.00010995,2]
[323510720,1714060244623,-500.0,0.00010995,2]
[323510721,1714060244632,-500.0,0.00010995,2]
[323510722,1714060244641,-500.0,0.00010995,2]
[323510723,1714060244650,-500.0,0.00010995,2]
[323510724,1714060244659,-521.84,0.00010995,2]
[323510725,1714060244668,-500.0,0.00010995,2]
[323510726,1714060244677,-500.0,0.00010995,2]
[323510727,1714060244687,-500.0,0.00010995,2]
[323510728,1714060244696,-500.0,0.00010995,2]
[323510729,1714060244705,-500.0,0.00010995,2]
[323510730,1714060244715,-500.0,0.00010995,2]
[323510731,1714060244724,-504.17834275,0.00010995,2]
[323510732,1714060244736,-500.0,0.00010995,2]
[323510733,1714060244745,-500.0,0.00010995,2]
[323510734,1714060244754,-500.0,0.00010995,2]
[323510735,1714060244763,-500.0,0.00010995,2]
[323510736,1714060244773,-249.22,0.00010995,2]
[323510737,1714060244783,-235.79,0.00010995,2]
[323510738,1714060244792,-500.0,0.00010995,2]
[323510739,1714060244802,-500.0,0.00010995,2]
[323510740,1714060244812,-500.0,0.00010995,2]
[323510741,1714060244821,-506.57342914,0.00010995,2]
[323510742,1714060244830,-500.0,0.00010995,2]
[323510743,1714060244839,-500.0,0.00010995,2]
[323510744,1714060244848,-500.0,0.00010995,2]
[323510745,1714060244857,-500.0,0.00010995,2]
[323510746,1714060244866,-500.0,0.00010995,2]
[323510747,1714060244875,-500.0,0.00010995,2]
[323510748,1714060244885,-500.0,0.00010995,2]
[323510749,1714060244894,-500.0,0.00010995,2]
[323510750,1714060244903,-500.0,0.00010995,2]
[323510751,1714060244912,-576.77,0.00010995,2]
[323510752,1714060244921,-500.0,0.00010995,2]
[323510753,1714060244930,-500.0,0.00010995,2]
[323510754,1714060244939,-500.0,0.00010995,2]
[323510755,1714060244948,-595.49,0.00010995,2]
[323510756,1714060244959,-500.0,0.00010995,2]
[323510757,1714060244968,-500.0,0.00010995,2]
[323510758,1714060244980,-500.0,0.00010995,2]
[323510759,1714060244989,-627.12,0.00010995,2]
[323510760,1714060244998,-500.0,0.00010995,2]
[323510761,1714060245007,-500.0,0.00010995,2]
[323510762,1714060245016,-500.0,0.00010995,2]
[323510763,1714060245025,-525.06,0.00010995,2]
[323510764,1714060245034,-500.0,0.00010995,2]
[323510765,1714060245043,-500.0,0.00010995,2]
[323510766,1714060245053,-500.0,0.00010995,2]
[323510767,1714060245062,-500.0,0.00010995,2]
[323510768,1714060245072,-431.56,0.00010995,2]
[323510769,1714060245081,-303.53263843,0.00010995,2]
[323510770,1714060245091,-500.0,0.00010995,2]
[323510771,1714060245101,-500.0,0.00010995,2]
[323510772,1714060245114,-346.890571,0.00010995,2]
[323510773,1714060245124,-505.17,0.00010995,2]
[323510774,1714060245135,-500.0,0.00010995,2]
[323510775,1714060245144,-500.0,0.00010995,2]
[323510776,1714060245154,-500.0,0.00010995,2]
[323510777,1714060245165,-331.78,0.00010995,2]
[323510778,1714060245175,-500.0,0.00010995,2]
[323510779,1714060245184,-500.0,0.00010995,2]
[323510780,1714060245194,-500.0,0.00010995,2]
[323510781,1714060245204,-315.64,0.00010995,2]
[323510782,1714060245213,-327.55,0.00010995,2]
[323510783,1714060245223,-500.0,0.00010995,2]
[323510784,1714060245233,-500.0,0.00010995,2]
[323510785,1714060245242,-500.0,0.00010995,2]
[323510786,1714060245251,-272.62916283,0.00010995,2]
[323510787,1714060245261,-450.0,0.00010995,2]
[323510788,1714060245271,-1025.83,0.00010995,2]
[323510789,1714060245281,-380.836241,0.00010995,2]
[323510790,1714060245291,-500.0,0.00010995,2]
[323510791,1714060245301,-407.47,0.00010995,2]
[323510792,1714060245310,-500.0,0.00010995,2]
[323510793,1714060245320,-500.0,0.00010995,2]
[323510794,1714060245329,-606.66,0.00010995,2]
[323510795,1714060245338,-662.43,0.00010995,2]
[323510796,1714060245348,-556.52417933,0.00010995,2]
[323510797,1714060245357,-500.0,0.00010995,2]
[323510798,1714060245367,-500.0,0.00010995,2]
[323510799,1714060245376,-500.0,0.00010995,2]
[323510800,1714060245386,-500.0,0.00010995,2]
[323510801,1714060245395,-500.0,0.00010995,2]
[323510802,1714060245404,-500.0,0.00010995,2]
[323510803,1714060245414,-174.46,0.00010995,2]
[323510804,1714060245423,-495.9,0.00010995,2]
[323510805,1714060245432,-528.16,0.00010995,2]
[323510806,1714060245441,-500.0,0.00010995,2]
[323510807,1714060245450,-500.0,0.00010995,2]
[323510808,1714060245460,-500.0,0.00010995,2]
[323510809,1714060245469,-500.0,0.00010995,2]
[323510810,1714060245480,-500.0,0.00010995,2]
[323510811,1714060245490,-500.0,0.00010995,2]
[323510812,1714060245499,-500.0,0.00010995,2]
[323510813,1714060245508,-500.0,0.00010995,2]
[323510814,1714060245517,-500.0,0.00010995,2]
[323510815,1714060245526,-500.0,0.00010995,2]
[323510816,1714060245536,-500.0,0.00010995,2]
[323510817,1714060245546,-500.0,0.00010995,2]
[323510818,1714060245555,-515.45,0.00010995,2]
[323510819,1714060245565,-500.0,0.00010995,2]
[323510820,1714060245573,-743.56,0.00010995,2]
[323510821,1714060245584,-500.0,0.00010995,2]
[323510822,1714060245593,-184.35,0.00010995,2]
[323510823,1714060245603,-1177.91,0.00010995,2]
[323510824,1714060245612,-500.0,0.00010995,2]
[323510825,1714060245621,-500.0,0.00010995,2]
[323510826,1714060245631,-500.0,0.00010995,2]
[323510827,1714060245640,-500.0,0.00010995,2]
[323510828,1714060245649,-627.86,0.00010995,2]
[323510829,1714060245658,-500.0,0.00010995,2]
[323510830,1714060245667,-500.0,0.00010995,2]
[323510831,1714060245677,-500.0,0.00010995,2]
[323510832,1714060245688,-292.19,0.00010995,2]
[323510833,1714060245697,-500.0,0.00010995,2]
[323510834,1714060245707,-500.0,0.00010995,2]
[323510835,1714060245716,-500.0,0.00010995,2]
[323510836,1714060245725,-796.23,0.00010995,2]
[323510837,1714060245735,-500.0,0.00010995,2]
[323510838,1714060245744,-500.0,0.00010995,2]
[323510839,1714060245753,-709.05,0.00010995,2]
[323510840,1714060245762,-500.0,0.00010995,2]
[323510841,1714060245772,-500.0,0.00010995,2]
[323510842,1714060245781,-500.0,0.00010995,2]
[323510843,1714060245790,-186.65,0.00010995,2]
[323510844,1714060245800,-500.0,0.00010995,2]
[323510845,1714060245809,-500.0,0.00010995,2]
[323510846,1714060245819,-500.0,0.00010995,2]
[323510847,1714060245828,-974.66,0.00010995,2]
[323510848,1714060245838,-486.09,0.00010995,2]
[323510849,1714060245849,-167.66,0.00010995,2]
[323510850,1714060245858,-633.17,0.00010995,2]
[323510851,1714060245868,-500.0,0.00010995,2]
[323510852,1714060245877,-500.0,0.00010995,2]
[323510853,1714060245887,-416.44,0.00010995,2]
[323510854,1714060245897,-500.0,0.00010995,2]
[323510855,1714060245906,-276.00147888,0.00010995,2]
[323510856,1714060245916,-500.0,0.00010995,2]
[323510857,1714060245925,-500.0,0.00010995,2]
[323510858,1714060245935,-519.43,0.00010995,2]
[323510859,1714060245944,-500.0,0.00010995,2]
[323510860,1714060245954,-500.0,0.00010995,2]
[323510861,1714060245964,-500.0,0.00010995,2]
[323510862,1714060245973,-500.0,0.00010995,2]
[323510863,1714060245984,-500.0,0.00010995,2]
[323510864,1714060245993,-500.0,0.00010995,2]
[323510865,1714060246002,-500.0,0.00010995,2]
[323510866,1714060246011,-502.4940036,0.00010995,2]
[323510867,1714060246020,-500.0,0.00010995,2]
[323510868,1714060246030,-500.0,0.00010995,2]
[323510869,1714060246039,-501.24082473,0.00010995,2]
[323510870,1714060246051,-500.0,0.00010995,2]
[323510871,1714060246060,-500.0,0.00010995,2]
[323510872,1714060246069,-502.26281385,0.00010995,2]
[323510873,1714060246079,-500.0,0.00010995,2]
[323510874,1714060246089,-502.47617132,0.00010995,2]
[323510875,1714060246098,-500.0,0.00010995,2]
[323510876,1714060246108,-502.61846212,0.00010995,2]
[323510877,1714060246118,-500.0,0.00010995,2]
[323510878,1714060246130,-501.03525495,0.00010995,2]
[323510879,1714060246140,-500.0,0.00010995,2]
[323510881,1714060246149,-502.83458636,0.00010995,2]
[323510882,1714060246159,-500.0,0.00010995,2]
[323510883,1714060246170,-502.79965979,0.00010995,2]
[323510884,1714060246180,-542.66,0.00010995,2]
[323510885,1714060246189,-500.0,0.00010995,2]
[323510886,1714060246200,-500.0,0.00010995,2]
[323510889,1714060246208,-500.0,0.00010995,2]
[323510891,1714060246219,-500.0,0.00010995,2]
[323510893,1714060246229,-500.0,0.00010995,2]
[323510895,1714060246240,-500.0,0.00010995,2]
[323510897,1714060246250,-500.0,0.00010995,2]
[323510899,1714060246259,-168.54705631,0.00010995,2]
[323510901,1714060246269,-500.0,0.00010995,2]
[323510904,1714060246279,-500.0,0.00010995,2]
[323510906,1714060246288,-500.0,0.00010995,2]
[323510908,1714060246298,-518.46,0.00010995,2]
[323510910,1714060246308,-509.26224461,0.00010995,2]
[323510912,1714060246317,-500.0,0.00010995,2]
[323510913,1714060246326,-500.0,0.00010995,2]
[323510915,1714060246335,-502.78165635,0.00010995,2]
[323510917,1714060246345,-500.0,0.00010995,2]
[323510919,1714060246354,-500.0,0.00010995,2]
[323510921,1714060246364,-507.25262573,0.00010995,2]
[323510923,1714060246373,-500.0,0.00010995,2]
[323510925,1714060246383,-503.01932193,0.00010995,2]
[323510927,1714060246392,-500.0,0.00010995,2]
[323510930,1714060246403,-500.0,0.00010995,2]
[323510932,1714060246413,-502.51296252,0.00010995,2]
[323510934,1714060246422,-500.0,0.00010995,2]
[323510935,1714060246431,-500.0,0.00010995,2]
[323510936,1714060246441,-300.0,0.00010995,2]
[323510937,1714060246450,-617.31,0.00010995,2]
[323510938,1714060246460,-500.0,0.00010995,2]
[323510939,1714060246470,-500.0,0.00010995,2]
[323510940,1714060246480,-500.0,0.00010995,2]
[323510941,1714060246490,-500.0,0.00010995,2]
[323510942,1714060246500,-500.05455795,0.00010995,2]
[323510943,1714060246509,-500.0,0.00010995,2]
[323510944,1714060246519,-543.36,0.00010995,2]
[323510945,1714060246528,-500.0,0.00010995,2]
[323510946,1714060246538,-500.0,0.00010995,2]
[323510947,1714060246548,-632.17,0.00010995,2]
[323510948,1714060246557,-500.0,0.00010995,2]
[323510949,1714060246727,-502.53623921,0.00010995,2]
[323510950,1714060246739,-501.27689728,0.00010995,2]
[323510951,1714060246748,-501.64,0.00010995,2]
[323510952,1714060246757,-500.0,0.00010995,2]
[323510953,1714060246766,-506.52775557,0.00010995,2]
[323510954,1714060246775,-502.54270424,0.00010995,2]
[323510955,1714060246784,-500.0,0.00010995,2]
[323510956,1714060246794,-514.36485662,0.00010995,2]
[323510957,1714060246804,-500.0,0.00010995,2]
[323510958,1714060246814,-500.0,0.00010995,2]
[323510959,1714060246823,-500.0,0.00010995,2]
[323510960,1714060246832,-500.0,0.00010995,2]
[323510961,1714060246841,-500.0,0.00010995,2]
[323510962,1714060246851,-500.0,0.00010995,2]
[323510963,1714060246860,-500.0,0.00010995,2]
[323510964,1714060246869,-500.0,0.00010995,2]
[323510965,1714060246879,-508.90198079,0.00010995,2]
[323510966,1714060246888,-556.06,0.00010995,2]
[323510967,1714060246897,-500.0,0.00010995,2]
[323510968,1714060246906,-500.0,0.00010995,2]
[323510969,1714060246915,-500.0,0.00010995,2]
[323510970,1714060246924,-500.0,0.00010995,2]
[323510971,1714060246934,-500.0,0.00010995,2]
[323510972,1714060246944,-500.0,0.00010995,2]
[323510973,1714060246953,-3419.75,0.00010995,2]
[323510974,1714060246963,-500.0,0.00010995,2]
[323510975,1714060246972,-500.0,0.00010995,2]
[323510976,1714060246983,-500.0,0.00010995,2]
[323510977,1714060246993,-500.0,0.00010995,2]
[323510978,1714060247002,-500.0,0.00010995,2]
[323510979,1714060247012,-500.0,0.00010995,2]
[323510980,1714060247021,-893.92,0.00010995,2]
[323510981,1714060247030,-387.51381134,0.00010995,2]
[323510982,1714060247040,-500.0,0.00010995,2]
[323510983,1714060247049,-500.0,0.00010995,2]
[323510984,1714060247059,-1046.58,0.00010995,2]
[323510985,1714060247068,-500.0,0.00010995,2]
[323510986,1714060247078,-500.0,0.00010995,2]
[323510987,1714060247087,-500.0,0.00010995,2]
[323510988,1714060247096,-500.0,0.00010995,2]
[323510989,1714060247106,-500.0,0.00010995,2]
[323510990,1714060247120,-500.0,0.00010995,2]
[323510991,1714060247130,-594.86,0.00010995,2]
[323510992,1714060247141,-500.0,0.00010995,2]
[323510993,1714060247151,-500.0,0.00010995,2]
[323510994,1714060247161,-500.0,0.00010995,2]
[323510995,1714060247170,-500.0,0.00010995,2]
[323510996,1714060247180,-500.0,0.00010995,2]
[323510997,1714060247189,-500.0,0.00010995,2]
[323510998,1714060247198,-500.0,0.00010995,2]
[323510999,1714060247208,-500.0,0.00010995,2]
[323511000,1714060247217,-500.0,0.00010995,2]
[323511001,1714060247227,-500.0,0.00010995,2]
[323511002,1714060247238,-500.0,0.00010995,2]
[323511003,1714060247249,-152.81,0.00010995,2]
[323511004,1714060247260,-500.0,0.00010995,2]
[323511005,1714060247269,-500.0,0.00010995,2]
[323511006,1714060247278,-793.21,0.00010995,2]
[323511007,1714060247288,-534.76,0.00010995,2]
[323511008,1714060247298,-500.0,0.00010995,2]
[323511009,1714060247308,-500.0,0.00010995,2]
[323511010,1714060247317,-500.0,0.00010995,2]
[323511011,1714060247326,-500.0,0.00010995,2]
[323511012,1714060247335,-655.42,0.00010995,2]
[323511013,1714060247345,-500.0,0.00010995,2]
[323511014,1714060247355,-500.0,0.00010995,2]
[323511015,1714060247364,-500.0,0.00010995,2]
[323511016,1714060247373,-500.0,0.00010995,2]
[323511017,1714060247383,-500.0,0.00010995,2]
[323511018,1714060247392,-423.06,0.00010995,2]
[323511019,1714060247402,-500.0,0.00010995,2]
[323511020,1714060247411,-1829.3,0.00010995,2]
[323511021,1714060247420,-500.0,0.00010995,2]
[323511022,1714060247430,-500.0,0.00010995,2]
[323511023,1714060247439,-500.0,0.00010995,2]
[323511024,1714060247448,-500.0,0.00010995,2]
[323511025,1714060247458,-500.0,0.00010995,2]
[323511026,1714060247467,-500.0,0.00010995,2]
[323511027,1714060247476,-500.0,0.00010995,2]
[323511028,1714060247488,-500.0,0.00010995,2]
[323511029,1714060247498,-500.0,0.00010995,2]
[323511030,1714060247508,-500.0,0.00010995,2]
[323511031,1714060247518,-5311.09,0.00010995,2]
[323511032,1714060247527,-500.0,0.00010995,2]
[323511033,1714060247536,-500.0,0.00010995,2]
[323511034,1714060247546,-1639.63,0.00010995,2]
[323511035,1714060247555,-6842.7,0.00010995,2]
[323511036,1714060247565,-500.0,0.00010995,2]
[323511037,1714060247575,-500.0,0.00010995,2]
[323511038,1714060247584,-503.32951796,0.00010996,2]
[323511039,1714060247593,-500.0,0.00010996,2]
[323511040,1714060247603,-502.27432106,0.00010996,2]
[323511041,1714060247613,-501.86001043,0.00010996,2]
[323511042,1714060247622,-500.0,0.00010996,2]
[323511043,1714060247632,-463.90445809,0.00010996,2]
[323511044,1714060247641,-500.0,0.00010996,2]
[323511045,1714060247651,-591.89540234,0.00010996,2]
[323511046,1714060247661,-500.0,0.00010996,2]
[323511047,1714060247671,-500.0,0.00010996,2]
[323511048,1714060247680,-500.0,0.00010996,2]
[323511049,1714060247689,-229.58966246,0.00010996,2]
[323511050,1714060247699,-378.10863088,0.00010996,2]
[323511051,1714060247708,-500.0,0.00010996,2]
[323511052,1714060247718,-500.0,0.00010996,2]
[323511053,1714060247727,-155.0,0.00010997,2]
[323511054,1714060247741,-252.49467778,0.00010997,2]
[323511055,1714060247751,-500.0,0.00010997,2]
[323511056,1714060247760,-500.0,0.00010997,2]
[323511058,1714060247769,-392.21201561,0.00010998,2]
[323511059,1714060247779,-155.0,0.00010998,2]
[323511060,1714060247788,-2917.82080013,0.00010998,2]
[323511061,1714060247797,-249.7320373,0.00010998,2]
[323511062,1714060247807,-500.0,0.00010998,2]
[323511063,1714060247816,-500.0,0.00010998,2]
[323511064,1714060247825,-212.28292211,0.00010999,2]
[323511065,1714060247835,-500.0,0.00010999,2]
[323511066,1714060247845,-500.0,0.00010999,2]
[323511067,1714060247855,-500.0,0.00010999,2]
[323511068,1714060247864,-498.64,0.00011041,2]
[323511069,1714060247875,-1821.08,0.00011041,2]
[323511070,1714060247884,-413.76,0.00011041,2]
[323511071,1714060247893,-413.76,0.00011041,2]
[323511072,1714060247902,-270.29,0.00011041,2]
[323511073,1714060247911,-500.0,0.00011072,2]
[323511074,1714060247920,-440.78,0.00011093,2]
[323511075,1714060247931,-1478.33013836,0.00011169,2]
[323511076,1714060247942,-696.83997587,0.00011224,2]
[323511077,1714060247954,-3164.50993962,0.00011224,2]
[323511078,1714060247965,-2600.0,0.00011232,2]
[323511079,1714060247975,-1478.33013836,0.00011235,2]
[323511080,1714060247985,-500.0,0.00011267,2]
[323511081,1714060247994,-500.0,0.00011267,2]
[323511082,1714060248004,-1233.01,0.00011267,2]
[323511083,1714060248013,-500.0,0.00011267,2]
[323511084,1714060248022,-1177.58,0.00011267,2]
[323511085,1714060248032,-721.68,0.00011267,2]
[323511086,1714060248041,-590.14,0.00011267,2]
[323511087,1714060248051,-500.0,0.00011267,2]
[323511088,1714060248061,-205.14758053,0.00011267,2]
[323511089,1714060248070,-500.0,0.00011267,2]
[323511090,1714060248079,-586.41,0.00011267,2]
[323511091,1714060248088,-500.0,0.00011267,2]
[323511092,1714060248098,-613.13,0.00011267,2]
[323511093,1714060248107,-6361.02,0.00011267,2]
[323511094,1714060248117,-610.2,0.00011267,2]
[323511095,1714060248131,-500.0,0.00011267,2]
[323511096,1714060248141,-500.0,0.00011267,2]
[323511097,1714060248151,-4125.24,0.00011267,2]
[323511098,1714060248160,-4677.11,0.00011267,2]
[323511099,1714060248171,-906.13,0.00011267,2]
[323511100,1714060248182,-642.74,0.00011267,2]
[323511101,1714060248192,-1906.6,0.00011267,2]
[323511102,1714060248202,-500.0,0.00011267,2]
[323511103,1714060248211,-505.18,0.00011267,2]
[323511104,1714060248220,-500.0,0.00011267,2]
[323511105,1714060248229,-2378.51,0.00011267,2]
[323511106,1714060248240,-293.09415426,0.00011267,2]
[323511107,1714060248250,-721.8,0.00011267,2]
[323511108,1714060248259,-500.0,0.00011267,2]
[323511109,1714060248269,-500.0,0.00011267,2]
[323511110,1714060248278,-500.0,0.00011267,2]
[323511111,1714060248287,-500.0,0.00011267,2]
[323511112,1714060248296,-713.06,0.00011267,2]
[323511113,1714060248306,-500.0,0.00011268,2]
[323511114,1714060248315,-262.7018894,0.00011268,2]
[323511115,1714060248324,-500.0,0.00011268,2]
[323511116,1714060248334,-897.19,0.00011268,2]
[323511117,1714060248343,-500.0,0.00011268,2]
[323511118,1714060248352,-540.6,0.00011268,2]
[323511119,1714060248362,-520.48,0.00011268,2]
[323511120,1714060248371,-500.0,0.00011268,2]
[323511121,1714060248381,-535.02,0.00011268,2]
[323511122,1714060248390,-500.0,0.00011268,2]
[323511123,1714060248399,-500.0,0.00011268,2]
[323511124,1714060248409,-596.72,0.00011268,2]
[323511125,1714060248418,-500.0,0.00011268,2]
[323511126,1714060248427,-539.3,0.00011268,2]
[323511127,1714060248436,-500.0,0.00011268,2]
[323511128,1714060248446,-655.81,0.00011268,2]
[323511129,1714060248456,-500.0,0.00011268,2]
[323511130,1714060248465,-500.0,0.00011268,2]
[323511131,1714060248475,-500.0,0.00011268,2]
[323511132,1714060248485,-500.0,0.00011268,2]
[323511133,1714060248495,-500.0,0.00011268,2]
[323511134,1714060248504,-500.0,0.00011268,2]
[323511135,1714060248513,-500.0,0.00011268,2]
[323511136,1714060248522,-500.0,0.00011268,2]
[323511137,1714060248533,-362.98,0.00011268,2]
[323511138,1714060248542,-500.0,0.00011268,2]
[323511139,1714060248551,-500.0,0.00011268,2]
[323511140,1714060248561,-500.0,0.00011268,2]
[323511141,1714060248570,-236.72,0.00011268,2]
[323511142,1714060248579,-500.0,0.00011268,2]
[323511143,1714060248588,-500.0,0.00011268,2]
[323511144,1714060248597,-500.0,0.00011268,2]
[323511145,1714060248607,-217.6,0.00011268,2]
[323511146,1714060248616,-500.0,0.00011268,2]